bitfinex/quotes_BTCUSD_20250213
["timestamp","ask_amount","ask_price","bid_price","bid_amount"]
[1739448585855,0.32158174,96045.0,96044.0,0.59958183]
[1739448586119,0.07449833,96045.0,96044.0,0.27278815]
[1739448587023,0.07449833,96045.0,96044.0,0.26578815]
[1739448587445,0.07449833,96045.0,96044.0,0.41578815]
[1739448587651,0.07449833,96045.0,96044.0,0.42278815]
[1739448589035,0.07449833,96045.0,96044.0,0.41578815]
[1739448589302,0.07449833,96045.0,96044.0,0.42278815]
[1739448590861,0.07449833,96045.0,96044.0,0.44578815]
[1739448591239,1.0,96050.0,96044.0,0.44578815]
[1739448591240,0.84430025,96050.0,96049.0,0.15617]
[1739448591459,0.85105223,96050.0,96049.0,0.40867365]
[1739448592764,0.85105223,96050.0,96049.0,0.49787365]
[1739448593052,0.85105223,96050.0,96049.0,0.52787365]
[1739448593265,0.85105223,96050.0,96049.0,0.57617365]
[1739448593888,0.8511669,96050.0,96049.0,0.56917365]
[1739448594109,0.8511669,96050.0,96049.0,0.57617365]
[1739448594301,0.8511669,96050.0,96049.0,0.56917365]
[1739448594645,0.8511669,96050.0,96049.0,0.57617365]
[1739448595240,0.8511669,96050.0,96049.0,0.59727815]
[1739448595862,0.8511669,96050.0,96049.0,0.52787365]
[1739448596035,0.8511669,96050.0,96049.0,0.42267365]
[1739448597261,0.8511669,96050.0,96049.0,0.17017]
[1739448597859,0.8511669,96050.0,96049.0,0.16317]
[1739448598283,0.8511669,96050.0,96049.0,0.16817]
[1739448598487,0.85139056,96050.0,96049.0,0.16317]
[1739448598730,0.85139056,96050.0,96049.0,0.15617]
[1739448598996,0.85139056,96050.0,96044.0,0.0001065]
[1739448599214,0.86113195,96050.0,96047.0,0.156173]
[1739448599431,0.86113195,96050.0,96049.0,0.16117]
[1739448599610,0.86113195,96050.0,96049.0,0.005]
[1739448599843,0.86113195,96050.0,96049.0,0.012]
[1739448600095,0.86113195,96050.0,96049.0,0.007]
[1739448600496,0.86113195,96050.0,96049.0,0.16317]
[1739448600737,0.86113195,96050.0,96046.0,0.156175]
[1739448600929,0.85437997,96050.0,96049.0,0.007]
[1739448601172,0.85437997,96050.0,96049.0,0.16317]
[1739448601387,0.86110237,96050.0,96049.0,0.16317]
[1739448601987,0.86110237,96050.0,96049.0,0.27267365]
[1739448602644,0.86110237,96050.0,96049.0,0.014]
[1739448603832,0.86110237,96050.0,96049.0,0.17017]
[1739448604055,0.85437997,96050.0,96049.0,0.17017]
[1739448604256,0.86108621,96050.0,96049.0,0.17017]
[1739448607405,0.86108621,96050.0,96049.0,0.014]
[1739448607608,1.49476151,96050.0,96049.0,0.014]
[1739448607818,1.43314777,96050.0,96049.0,0.014]
[1739448608258,1.43314777,96050.0,96049.0,0.007]
[1739448608660,1.40371185,96050.0,96049.0,0.007]
[1739448609291,1.40371185,96050.0,96044.0,0.0001065]
[1739448609292,0.156176,96045.0,96044.0,0.0001065]
[1739448609512,0.38507965,96045.0,96044.0,0.0001065]
[1739448609715,0.40142871,96045.0,96044.0,0.0001065]
[1739448610668,0.85542871,96045.0,96044.0,0.0001065]
[1739448612904,0.85642871,96045.0,96044.0,0.0001065]
[1739448613135,0.70642871,96045.0,96044.0,0.0001065]
[1739448613340,0.70542871,96045.0,96044.0,0.0001065]
[1739448613694,0.70642871,96045.0,96044.0,0.0011065]
[1739448613922,0.71244483,96045.0,96044.0,0.0011065]
[1739448615920,0.71144483,96045.0,96044.0,0.0001065]
[1739448616586,0.71144483,96045.0,96044.0,0.0011065]
[1739448616726,0.156225,96015.0,96009.0,0.0001065]
[1739448617149,0.00655509,96015.0,96009.0,0.0001065]
[1739448617357,0.156233,96010.0,96009.0,0.0001065]
[1739448617955,0.156233,96010.0,96009.0,0.000547]
[1739448618168,0.16278809,96010.0,96009.0,0.000547]
[1739448618589,0.17418456,96010.0,96009.0,0.000547]
[1739448618799,0.18392595,96010.0,96009.0,0.000547]
[1739448618996,0.18392595,96010.0,96009.0,0.002547]
[1739448619564,0.18392595,96010.0,96009.0,0.000547]
[1739448619772,0.01629648,96010.0,96009.0,0.002547]
[1739448620081,0.01629648,96010.0,96009.0,0.003547]
[1739448620283,0.156233,96010.0,96009.0,0.003547]
[1739448620670,0.16260146,96010.0,96009.0,0.003547]
[1739448621686,0.00636846,96010.0,96009.0,0.003547]
[1739448621915,0.01610985,96010.0,96009.0,0.003547]
[1739448622076,0.17234285,96010.0,96009.0,0.003547]
[1739448623243,0.01610985,96010.0,96009.0,0.003547]
[1739448623848,0.01610985,96010.0,96009.0,0.159782]
[1739448624757,0.00636846,96010.0,96009.0,0.159782]
[1739448624935,0.00636846,96010.0,96009.0,0.003547]
[1739448625134,0.156233,96010.0,96009.0,0.003547]
[1739448625342,0.00636846,96010.0,96009.0,0.003547]
[1739448625545,0.16260146,96010.0,96009.0,0.003547]
[1739448626198,0.00636846,96010.0,96009.0,0.003547]
[1739448626407,0.15623,96012.0,96009.0,0.003547]
[1739448626615,0.156233,96010.0,96009.0,0.003547]
[1739448627028,0.16260146,96010.0,96009.0,0.003547]
[1739448627271,0.00636846,96010.0,96009.0,0.003547]
[1739448627438,0.156233,96011.0,96009.0,0.003547]
[1739448627638,0.00636846,96010.0,96009.0,0.003547]
[1739448628444,0.00636846,96010.0,96009.0,0.002547]
[1739448628657,0.00636846,96010.0,96009.0,0.158782]
[1739448628858,0.00636846,96010.0,96009.0,0.159782]
[1739448629214,0.00636846,96010.0,96009.0,0.158782]
[1739448629586,0.00974139,96015.0,96014.0,0.156227]
[1739448629797,0.01609713,96015.0,96014.0,0.156227]
[1739448630040,0.00974139,96015.0,96014.0,0.156227]
[1739448630242,0.00974139,96015.0,96014.0,0.233927]
[1739448630471,0.31001612,96016.0,96015.0,0.156225]
[1739448631097,0.31001612,96016.0,96014.0,0.0807]
[1739448631254,0.31001612,96016.0,96015.0,0.156225]
[1739448631489,0.31637186,96016.0,96015.0,0.156225]
[1739448631725,0.32608413,96016.0,96015.0,0.156225]
[1739448631961,0.32434571,96016.0,96015.0,0.156225]
[1739448632645,0.32434571,96016.0,96015.0,0.159225]
[1739448632854,0.31463344,96016.0,96015.0,0.158225]
[1739448633437,0.31463344,96016.0,96015.0,0.162225]
[1739448633658,0.31563344,96016.0,96015.0,0.168225]
[1739448634715,0.00561732,96016.0,96015.0,0.168225]
[1739448634883,0.001,96016.0,96015.0,0.168225]
[1739448636403,0.01073685,96016.0,96015.0,0.168225]
[1739448638643,0.01073685,96016.0,96015.0,0.27072865]
[1739448638823,0.01073685,96016.0,96015.0,0.42072865]
[1739448639185,0.01073685,96016.0,96015.0,0.46692865]
[1739448639993,0.01073685,96016.0,96015.0,0.48992865]
[1739448640221,0.01073685,96016.0,96015.0,0.57112865]
[1739448640429,0.001,96016.0,96015.0,0.57112865]
[1739448646071,0.001,96016.0,96015.0,0.54812865]
[1739448648302,0.001,96016.0,96015.0,0.57112865]
[1739448649435,0.001,96016.0,96015.0,0.60356812]
[1739448649667,0.001,96016.0,96015.0,0.59756812]
[1739448649881,0.00973482,96029.0,96028.0,0.386604]
[1739448650086,0.00973482,96029.0,96028.0,0.48910765]
[1739448650495,0.00973482,96043.0,96042.0,0.156181]
[1739448650893,0.00973482,96043.0,96037.0,0.208251]
[1739448651098,0.156185,96040.0,96033.0,0.15]
[1739448651303,0.156187,96039.0,96032.0,0.15]
[1739448651578,0.00659283,96038.0,96032.0,0.15]
[1739448652097,0.00973482,96038.0,96028.0,0.0804]
[1739448652310,0.156199,96032.0,96023.0,0.156211]
[1739448652523,0.00659283,96037.0,96028.0,0.007]
[1739448652524,0.156202,96029.0,96028.0,0.007]
[1739448652848,0.11668943,96033.0,96014.0,0.0001065]
[1739448652849,0.156206,96027.0,96019.0,0.156219]
[1739448653052,0.156206,96027.0,96020.0,0.15]
[1739448653175,0.01631436,96026.0,96020.0,0.15]
[1739448653379,0.01631436,96026.0,96020.0,0.306216]
[1739448653600,0.01631436,96026.0,96014.0,0.0001065]
[1739448653601,0.156225,96015.0,96014.0,0.0001065]
[1739448654027,0.16279685,96015.0,96014.0,0.0001065]
[1739448654795,0.01630667,96015.0,96014.0,0.0001065]
[1739448655433,0.01630667,96015.0,96014.0,0.0011065]
[1739448656101,0.01630667,96015.0,96014.0,0.0031065]
[1739448656270,0.01630667,96015.0,96014.0,0.0001065]
[1739448656662,0.01630667,96015.0,96014.0,0.0021065]
[1739448658246,0.01630667,96015.0,96014.0,0.1593335]
[1739448658450,0.00973482,96015.0,96014.0,0.1593335]
[1739448659395,0.00973482,96015.0,96014.0,0.26183715]
[1739448660026,0.00973482,96015.0,96014.0,0.25983715]
[1739448660433,0.00973482,96015.0,96014.0,0.26183715]
[1739448660639,0.00973482,96015.0,96014.0,0.28483715]
[1739448660845,0.00973482,96015.0,96014.0,0.28383715]
[1739448661301,0.31001612,96039.0,96018.0,0.208294]
[1739448661499,0.00655019,96038.0,96035.0,0.156192]
[1739448661806,0.00655019,96038.0,96034.0,0.156194]
[1739448661977,0.00655019,96038.0,96021.0,0.208287]
[1739448662191,0.00022366,96044.0,96022.0,0.10250365]
[1739448662390,0.16274119,96037.0,96022.0,0.10250365]
[1739448662621,0.156191,96037.0,96031.0,0.156199]
[1739448662791,0.00652482,96036.0,96034.0,0.156194]
[1739448662993,0.00652482,96036.0,96035.0,0.156193]
[1739448663200,0.001,96038.0,96035.0,0.156193]
[1739448663358,0.00652482,96036.0,96035.0,0.156191]
[1739448663569,0.001,96038.0,96026.0,0.208274]
[1739448663807,0.00652482,96036.0,96022.0,0.10250365]
[1739448663977,0.11668943,96040.0,96022.0,0.10250365]
[1739448664174,0.00652482,96035.0,96023.0,0.208283]
[1739448664464,0.11668943,96040.0,96022.0,0.10250365]
[1739448664672,0.11668943,96040.0,96023.0,0.285583]
[1739448664888,0.00652482,96039.0,96035.0,0.156192]
[1739448665102,0.00652482,96039.0,96022.0,0.10250365]
[1739448665309,0.156204,96029.0,96022.0,0.25871565]
[1739448665514,0.156204,96029.0,96014.0,0.0779065]
[1739448665515,0.156209,96025.0,96023.0,0.001]
[1739448665710,0.11668943,96032.0,96014.0,0.0779065]
[1739448665913,0.156198,96032.0,96014.0,0.0779065]
[1739448666117,0.156204,96028.0,96014.0,0.0779065]
[1739448666374,0.156222,96017.0,96014.0,0.0001065]
[1739448666576,0.156223,96016.0,96015.0,0.03118835]
[1739448667636,0.17715131,96016.0,96015.0,0.03118835]
[1739448668063,0.02092831,96016.0,96014.0,0.0001065]
[1739448668269,0.156225,96015.0,96014.0,0.0001065]
[1739448668700,0.1659723,96015.0,96014.0,0.0001065]
[1739448669465,0.1659723,96015.0,96014.0,0.0011065]
[1739448669661,0.1659723,96015.0,96014.0,0.0001065]
[1739448669868,0.17249298,96015.0,96014.0,0.0001065]
[1739448670471,0.01626798,96015.0,96014.0,0.0001065]
[1739448670671,0.17249298,96015.0,96014.0,0.0001065]
[1739448671077,0.17249298,96015.0,96014.0,0.0021065]
[1739448673841,0.01626798,96015.0,96014.0,0.0021065]
[1739448674000,0.01626798,96015.0,96014.0,0.1583335]
[1739448674619,0.0097473,96015.0,96014.0,0.1583335]
[1739448676495,0.01623333,96015.0,96014.0,0.0021065]
[1739448676650,0.01623333,96015.0,96014.0,0.1583335]
[1739448677058,0.0097473,96015.0,96014.0,0.0021065]
[1739448677260,0.01624149,96015.0,96014.0,0.0021065]
[1739448677458,0.0117473,96015.0,96014.0,0.0001065]
[1739448677664,0.01824149,96015.0,96014.0,0.0001065]
[1739448678089,0.01624149,96015.0,96014.0,0.0001065]
[1739448678263,0.01624149,96015.0,96014.0,0.1643335]
[1739448678484,0.0097473,96015.0,96014.0,0.1643335]
[1739448679662,0.0097473,96015.0,96014.0,0.0081065]
[1739448679862,0.1659723,96015.0,96014.0,0.0081065]
[1739448680075,0.17246611,96015.0,96014.0,0.0081065]
[1739448680970,0.01624111,96015.0,96014.0,0.0081065]
[1739448681376,0.17246611,96015.0,96014.0,0.0081065]
[1739448681596,0.17246611,96015.0,96014.0,0.0001065]
[1739448681805,0.17246611,96015.0,96014.0,0.0031065]
[1739448683071,0.27496976,96015.0,96014.0,0.0031065]
[1739448683558,0.27496976,96015.0,96014.0,0.0041065]
[1739448683768,0.27496976,96015.0,96014.0,0.0011065]
[1739448684180,0.27496976,96015.0,96014.0,0.0001065]
[1739448684396,0.17446611,96015.0,96014.0,0.0001065]
[1739448688274,0.16471881,96015.0,96014.0,0.0001065]
[1739448693215,0.00849381,96015.0,96014.0,0.1563335]
[1739448693643,0.00649381,96015.0,96014.0,0.1563335]
[1739448694151,0.00849381,96015.0,96014.0,0.1563335]
[1739448694595,0.0111329,96025.0,96014.0,0.0001065]
[1739448694839,0.002,96015.0,96014.0,0.0001065]
[1739448695020,0.002,96015.0,96014.0,0.2084085]
[1739448695645,0.002,96015.0,96014.0,0.2124085]
[1739448696266,0.002,96015.0,96014.0,0.39201215]
[1739448696725,0.01100029,96031.0,96030.0,0.156201]
[1739448696969,0.156188,96038.0,96032.0,0.156196]
[1739448697135,0.156186,96039.0,96033.0,0.156196]
[1739448697340,0.156186,96039.0,96030.0,0.156201]
[1739448697341,0.01124341,96039.0,96014.0,0.18771015]
[1739448697570,0.00646897,96038.0,96035.0,0.156192]
[1739448697791,0.156182,96042.0,96035.0,0.156192]
[1739448698417,0.00650022,96041.0,96036.0,0.156191]
[1739448698620,0.208246,96040.0,96032.0,0.156197]
[1739448698844,0.156186,96039.0,96032.0,0.156197]
[1739448699087,0.16268822,96039.0,96017.0,0.208296]
[1739448699270,0.16268822,96039.0,96033.0,0.156196]
[1739448699696,0.003,96038.0,96033.0,0.156196]
[1739448699899,0.15619,96037.0,96031.0,0.156199]
[1739448700129,0.003,96038.0,96032.0,0.156197]
[1739448700321,0.00650022,96036.0,96032.0,0.156197]
[1739448700523,0.208242,96042.0,96033.0,0.001]
[1739448700702,0.00650022,96035.0,96033.0,0.001]
[1739448700877,0.156191,96037.0,96025.0,0.208277]
[1739448701094,0.00650022,96034.0,96031.0,0.156198]
[1739448701339,0.156191,96037.0,96032.0,0.001]
[1739448701543,0.00650022,96033.0,96032.0,0.001]
[1739448701771,0.01103387,96044.0,96033.0,0.003]
[1739448701935,0.156193,96035.0,96033.0,0.003]
[1739448702167,0.156189,96037.0,96032.0,0.001]
[1739448702745,0.156189,96037.0,96031.0,0.160199]
[1739448702948,0.01103387,96044.0,96031.0,0.004]
[1739448703160,0.01103387,96044.0,96034.0,0.156193]
[1739448703360,0.208241,96043.0,96034.0,0.156193]
[1739448703563,0.156187,96039.0,96032.0,0.156197]
[1739448703721,0.156187,96039.0,96032.0,0.158197]
[1739448703946,0.156187,96039.0,96032.0,0.002]
[1739448704148,0.156187,96039.0,96033.0,0.156196]
[1739448704509,0.156187,96039.0,96033.0,0.157196]
[1739448704755,0.208244,96041.0,96027.0,0.0492]
[1739448704909,0.156185,96040.0,96027.0,0.0492]
[1739448705121,0.156185,96040.0,96034.0,0.156193]
[1739448705773,0.01103387,96044.0,96036.0,0.15619]
[1739448705964,0.156182,96042.0,96036.0,0.15619]
[1739448706377,0.156184,96040.0,96035.0,0.156192]
[1739448707194,0.156187,96039.0,96032.0,0.156196]
[1739448707396,0.156187,96039.0,96034.0,0.002]
[1739448707582,0.16392261,96039.0,96033.0,0.156195]
[1739448707775,0.16392261,96039.0,96035.0,0.001]
[1739448707934,0.00773561,96039.0,96035.0,0.003]
[1739448708128,0.00773561,96039.0,96035.0,0.001]
[1739448708517,0.01103387,96044.0,96035.0,0.001]
[1739448708720,0.01103387,96044.0,96037.0,0.208252]
[1739448708930,0.01103387,96044.0,96034.0,0.158194]
[1739448709157,0.16721187,96044.0,96037.0,0.0766]
[1739448709368,0.01103387,96044.0,96039.0,0.156186]
[1739448709577,0.01103387,96044.0,96037.0,0.0766]
[1739448709799,0.01103387,96044.0,96038.0,0.20825]
[1739448710215,0.01203387,96044.0,96038.0,0.20825]
[1739448710410,0.01203387,96044.0,96041.0,0.156183]
[1739448710620,0.01112102,96044.0,96041.0,0.156183]
[1739448710812,0.01112102,96044.0,96037.0,0.0766]
[1739448711072,0.01212102,96044.0,96042.0,0.15618]
[1739448711277,0.01212102,96044.0,96037.0,0.0766]
[1739448711453,0.01212102,96044.0,96039.0,0.156185]
[1739448711750,0.01212102,96044.0,96043.0,0.15618]
[1739448712744,0.01112102,96044.0,96043.0,0.15618]
[1739448713167,0.01212102,96044.0,96043.0,0.15618]
[1739448713423,0.01212102,96044.0,96040.0,0.156183]
[1739448713600,0.01112102,96044.0,96037.0,0.285852]
[1739448713797,0.01112102,96044.0,96037.0,0.284852]
[1739448714025,0.01212102,96044.0,96040.0,0.156184]
[1739448714218,0.01212102,96044.0,96043.0,0.001]
[1739448714456,0.01112102,96044.0,96039.0,0.156186]
[1739448714665,0.01112102,96044.0,96040.0,0.001]
[1739448714865,0.00650722,96043.0,96040.0,0.001]
[1739448715067,0.00650722,96043.0,96042.0,0.156181]
[1739448715477,0.01212102,96044.0,96043.0,0.15618]
[1739448715949,0.01862824,96044.0,96043.0,0.15618]
[1739448716775,0.01762824,96044.0,96043.0,0.15618]
[1739448717873,0.01862824,96044.0,96043.0,0.15718]
[1739448718122,0.01676903,96044.0,96043.0,0.15718]
[1739448721254,0.02450954,96044.0,96043.0,0.15718]
[1739448722520,0.18068754,96044.0,96043.0,0.001]
[1739448723393,0.28319119,96044.0,96043.0,0.001]
[1739448723613,0.35859119,96044.0,96043.0,0.001]
[1739448723827,0.231593,96035.0,96014.0,0.0001065]
[1739448724043,0.33409665,96035.0,96014.0,0.0001065]
[1739448724276,0.33873028,96035.0,96014.0,0.0001065]
[1739448724549,0.156225,96015.0,96014.0,0.0001065]
[1739448724766,0.25872865,96015.0,96014.0,0.0001065]
[1739448724990,0.26336229,96015.0,96014.0,0.0001065]
[1739448725836,0.26336229,96015.0,96014.0,0.000547]
[1739448726053,0.65711892,96015.0,96014.0,0.003547]
[1739448726459,0.80711892,96015.0,96014.0,0.003547]
[1739448726892,0.80711892,96015.0,95982.0,0.0794065]
[1739448726893,0.156277,95983.0,95982.0,0.0001065]
[1739448727377,0.16089065,95983.0,95982.0,0.0001065]
[1739448727590,0.17184768,95983.0,95982.0,0.0001065]
[1739448728232,0.17184768,95983.0,95982.0,0.00015047]
[1739448728892,0.17958819,95983.0,95982.0,0.00015047]
[1739448730325,0.17184768,95983.0,95982.0,0.00015047]
[1739448731416,0.17184768,95983.0,95982.0,0.00115047]
[1739448733421,0.17284768,95983.0,95982.0,0.00115047]
[1739448734247,0.17284768,95983.0,95982.0,0.00015047]
[1739448734479,0.27535133,95983.0,95982.0,0.00015047]
[1739448735632,0.58536745,95983.0,95982.0,0.00015047]
[1739448736476,0.66256745,95983.0,95982.0,0.00015047]
[1739448737453,0.84324964,95983.0,95982.0,0.00015047]
[1739448737662,0.84224964,95983.0,95982.0,0.00015047]
[1739448738834,0.84324964,95983.0,95982.0,0.00015047]
[1739448739831,0.84224964,95983.0,95982.0,0.00015047]
[1739448740245,0.84624964,95983.0,95982.0,0.00015047]
[1739448740753,0.84924964,95983.0,95982.0,0.00015047]
[1739448741338,0.85424964,95983.0,95982.0,0.00115047]
[1739448741542,0.85124964,95983.0,95982.0,0.00115047]
[1739448741804,1.14624964,95983.0,95982.0,0.00015047]
[1739448741998,1.15124964,95983.0,95982.0,0.00115047]
[1739448742205,1.15824964,95983.0,95982.0,0.00215047]
[1739448742653,1.15124964,95983.0,95982.0,4.7e-07]
[1739448742992,1.15824964,95983.0,95982.0,4.7e-07]
[1739448743207,1.28075329,95983.0,95982.0,4.7e-07]
[1739448743418,1.31018921,95983.0,95982.0,4.7e-07]
[1739448743675,1.31018921,95983.0,95952.0,0.0001064]
[1739448743676,0.156326,95953.0,95952.0,0.0001064]
[1739448743884,0.61694577,95953.0,95952.0,0.0001064]
[1739448744098,0.57333217,95953.0,95952.0,0.0001064]
[1739448744946,0.57341007,95953.0,95952.0,0.0001064]
[1739448745160,0.57841007,95953.0,95952.0,0.0001064]
[1739448745378,0.57341007,95953.0,95952.0,0.0001064]
[1739448745793,0.47390642,95953.0,95952.0,0.0001064]
[1739448746393,0.48090642,95953.0,95952.0,0.0001064]
[1739448746837,0.31758042,95953.0,95952.0,0.0001064]
[1739448747076,0.32258042,95953.0,95952.0,0.0001064]
[1739448747537,0.31458042,95953.0,95952.0,0.0001064]
[1739448747746,0.0045643,95953.0,95952.0,0.0001064]
[1739448747947,0.0115643,95953.0,95952.0,0.0001064]
[1739448748275,0.0085643,95953.0,95952.0,0.0001064]
[1739448748415,0.0085643,95953.0,95952.0,0.0021064]
[1739448749023,0.0045643,95953.0,95952.0,0.0021064]
[1739448749219,7.79e-05,95953.0,95952.0,0.0021064]
[1739448749418,0.00455152,95953.0,95952.0,0.0021064]
[1739448751789,0.00455152,95953.0,95952.0,0.1584344]
[1739448752271,0.00455152,95953.0,95952.0,0.0021064]
[1739448752481,0.1564039,95953.0,95952.0,0.0021064]
[1739448752891,0.16084975,95953.0,95952.0,0.0021064]
[1739448754979,0.16856758,95953.0,95952.0,0.0021064]
[1739448755770,0.16856758,95953.0,95952.0,0.0001064]
[1739448755990,0.17256758,95953.0,95952.0,0.0001064]
[1739448756201,0.17556758,95953.0,95952.0,0.0001064]
[1739448756796,0.27807123,95953.0,95952.0,0.0001064]
[1739448759039,0.0769,95946.0,95935.0,0.0001067]
[1739448759222,0.15635,95938.0,95937.0,1e-07]
[1739448759429,0.26326676,95938.0,95937.0,1e-07]
[1739448760399,0.27098459,95938.0,95937.0,1e-07]
[1739448760878,0.27098459,95938.0,95909.0,0.0496]
[1739448760879,0.15,95935.0,95927.0,0.00011776]
[1739448761101,0.306367,95928.0,95927.0,5.107e-05]
[1739448761303,0.48567065,95928.0,95927.0,7e-08]
[1739448761500,0.49072205,95928.0,95927.0,7e-08]
[1739448761639,0.156381,95919.0,95918.0,6.647e-05]
[1739448762006,0.41888465,95919.0,95918.0,6.647e-05]
[1739448762151,0.42393566,95919.0,95918.0,6.647e-05]
[1739448762760,0.306393,95912.0,95911.0,6.647e-05]
[1739448762975,0.306393,95912.0,95886.0,0.0497065]
[1739448762976,0.306411,95901.0,95886.0,0.0001065]
[1739448763195,0.40891465,95901.0,95900.0,0.00014558]
[1739448763405,0.41496078,95901.0,95900.0,0.00014558]
[1739448764178,0.41496078,95901.0,95886.0,0.0001065]
[1739448764179,0.156434,95887.0,95886.0,0.0001065]
[1739448764398,0.26643617,95887.0,95886.0,0.00054698]
[1739448764659,0.26643617,95887.0,95886.0,0.00044048]
[1739448764852,0.29902375,95887.0,95886.0,0.00044048]
[1739448765465,0.30674158,95887.0,95886.0,0.00044048]
[1739448765755,0.31074158,95887.0,95886.0,0.00044048]
[1739448766161,0.34707298,95887.0,95886.0,0.00044048]
[1739448766800,0.34956186,95887.0,95886.0,0.00044048]
[1739448767245,0.80708114,95887.0,95886.0,0.00044048]
[1739448767901,0.90958479,95887.0,95886.0,0.00044048]
[1739448768312,0.78774974,95887.0,95886.0,4.8e-07]
[1739448768519,0.80749356,95887.0,95886.0,4.8e-07]
[1739448768700,0.77816216,95887.0,95886.0,4.8e-07]
[1739448768927,0.78050255,95887.0,95886.0,4.8e-07]
[1739448769121,0.77350255,95887.0,95886.0,4.8e-07]
[1739448769541,0.74750255,95887.0,95886.0,4.8e-07]
[1739448770192,0.74350255,95887.0,95886.0,4.8e-07]
[1739448770606,0.74850255,95887.0,95886.0,4.8e-07]
[1739448771035,1.14850255,95887.0,95886.0,4.8e-07]
[1739448771245,0.74850255,95887.0,95886.0,4.8e-07]
[1739448771427,0.74150255,95887.0,95886.0,4.8e-07]
[1739448771627,0.77150255,95887.0,95886.0,4.8e-07]
[1739448771805,0.76650255,95887.0,95886.0,4.8e-07]
[1739448772002,0.86455578,95887.0,95886.0,4.8e-07]
[1739448772205,0.85755578,95887.0,95886.0,4.8e-07]
[1739448772411,0.86455578,95887.0,95886.0,4.8e-07]
[1739448773870,0.83655578,95887.0,95886.0,4.8e-07]
[1739448774109,0.83455578,95887.0,95886.0,4.8e-07]
[1739448774526,1.14555578,95887.0,95886.0,4.8e-07]
[1739448774729,1.15055578,95887.0,95886.0,4.8e-07]
[1739448774908,1.05050255,95887.0,95886.0,4.8e-07]
[1739448775113,1.15020255,95887.0,95886.0,0.00010718]
[1739448775336,1.05272663,95887.0,95886.0,0.00010718]
[1739448775739,1.04072663,95887.0,95886.0,0.00010718]
[1739448775941,1.04772663,95887.0,95886.0,0.00010718]
[1739448776503,0.89772663,95887.0,95886.0,0.00010718]
[1739448776701,0.79522298,95887.0,95886.0,0.00010718]
[1739448777060,0.80022298,95887.0,95886.0,0.00010718]
[1739448777194,0.78822298,95887.0,95886.0,0.00010718]
[1739448777577,0.80022298,95887.0,95886.0,0.00010718]
[1739448777998,0.78822298,95887.0,95886.0,0.00010718]
[1739448778208,0.79222298,95887.0,95886.0,0.00010718]
[1739448778352,0.78650515,95887.0,95886.0,0.00010718]
[1739448778556,0.63007115,95887.0,95886.0,0.00010718]
[1739448778789,0.01905503,95887.0,95886.0,0.15654218]
[1739448778983,0.01305503,95887.0,95886.0,0.15654218]
[1739448779184,0.01156447,95887.0,95886.0,0.15654218]
[1739448779384,0.00922408,95887.0,95886.0,0.15654218]
[1739448780350,0.00322408,95887.0,95886.0,0.15654218]
[1739448780719,0.00022408,95887.0,95886.0,0.15654218]
[1739448780950,0.00522408,95887.0,95886.0,0.23644218]
[1739448781390,0.15665808,95887.0,95886.0,0.08000718]
[1739448781832,0.16690849,95887.0,95886.0,0.08600718]
[1739448782036,0.16590849,95887.0,95886.0,0.08400718]
[1739448782214,0.26741214,95887.0,95886.0,0.00010718]
[1739448782512,0.26741214,95887.0,95886.0,0.00210718]
[1739448782656,0.26741214,95887.0,95886.0,0.00010718]
[1739448783320,0.16490849,95887.0,95886.0,0.00010718]
[1739448783492,0.17258625,95887.0,95886.0,0.00010718]
[1739448783694,0.17258625,95887.0,95886.0,0.00210718]
[1739448784055,0.17258625,95887.0,95886.0,0.00010718]
[1739448784637,0.17758625,95887.0,95886.0,0.00110718]
[1739448784834,0.17758625,95887.0,95886.0,0.00010718]
[1739448785215,0.18058625,95887.0,95886.0,0.00010718]
[1739448785419,0.17258625,95887.0,95886.0,0.00010718]
[1739448785820,0.17458625,95887.0,95886.0,0.00010718]
[1739448786197,0.2770899,95887.0,95886.0,0.00010718]
[1739448786936,0.11452151,95887.0,95886.0,0.00010718]
[1739448787128,0.27583264,95887.0,95886.0,0.00010718]
[1739448787525,0.27783264,95887.0,95886.0,0.00010718]
[1739448787727,0.28283264,95887.0,95886.0,0.00010718]
[1739448787961,0.27905672,95887.0,95886.0,0.00010718]
[1739448788368,0.28205672,95887.0,95886.0,0.00010718]
[1739448788778,0.17955307,95887.0,95886.0,0.00010718]
[1739448790371,0.17455307,95887.0,95886.0,0.00010718]
[1739448790777,0.17955307,95887.0,95886.0,0.00010718]
[1739448791238,0.17655307,95887.0,95886.0,0.00010718]
[1739448791437,0.17955307,95887.0,95886.0,0.00010718]
[1739448792946,0.28205672,95887.0,95886.0,0.00010718]
[1739448793557,0.27705672,95887.0,95886.0,0.00010718]
[1739448793980,0.28405672,95887.0,95886.0,0.00010718]
[1739448794190,0.28105672,95887.0,95886.0,0.00010718]
[1739448794415,0.27405672,95887.0,95886.0,0.00010718]
[1739448794602,0.27805672,95887.0,95886.0,0.00010718]
[1739448794812,0.28505672,95887.0,95886.0,0.00010718]
[1739448795205,0.27405672,95887.0,95886.0,0.00010718]
[1739448795665,0.27905672,95887.0,95886.0,0.00010718]
[1739448795972,0.28605672,95887.0,95886.0,0.00010718]
[1739448797000,0.18355307,95887.0,95886.0,0.00010718]
[1739448797728,0.17155307,95887.0,95886.0,0.00010718]
[1739448798292,0.18255307,95887.0,95886.0,0.00010718]
[1739448798518,0.17855307,95887.0,95886.0,0.00010718]
[1739448798896,0.17455307,95887.0,95886.0,0.00010718]
[1739448799101,0.17955307,95887.0,95886.0,0.00010718]
[1739448799494,0.17955307,95887.0,95886.0,0.07670718]
[1739448801275,0.02311907,95887.0,95886.0,0.07670718]
[1739448801662,0.01590184,95887.0,95886.0,0.07670718]
[1739448801892,0.02315914,95887.0,95886.0,0.07670718]
[1739448802079,0.02315914,95887.0,95886.0,0.23314218]
[1739448802439,0.01590184,95887.0,95886.0,0.07670718]
[1739448802634,0.01590184,95887.0,95886.0,0.23314218]
[1739448803520,0.01590184,95887.0,95886.0,0.28064218]
[1739448804080,0.00790184,95887.0,95886.0,0.28064218]
[1739448804482,0.01390184,95887.0,95886.0,0.28064218]
[1739448805506,0.00622408,95887.0,95886.0,0.28064218]
[1739448805952,0.00622408,95887.0,95886.0,0.38314583]
[1739448806645,0.00222408,95887.0,95886.0,0.38314583]
[1739448806865,0.00322408,95887.0,95886.0,0.38314583]
[1739448807092,0.00122408,95887.0,95886.0,0.38314583]
[1739448807327,0.00022408,95887.0,95886.0,0.38314583]
[1739448807721,0.00022408,95887.0,95886.0,0.38414583]
[1739448808164,0.00122408,95887.0,95886.0,0.38414583]
[1739448811918,0.00122408,95887.0,95886.0,0.53414583]
[1739448819447,0.00122408,95887.0,95886.0,0.55714583]
[1739448820319,0.00122408,95887.0,95886.0,0.58830135]